Cogmind - Beta 9.4 @@@ ROGUE MODE // 2020.01.20 @ 22:06:30 // AFD2019/Pay2Buy Player: Cookie Result: Self-destructed Performance ------------- Evolutions (3) 1500 Regions Visited (6) 1200 Robots Destroyed (11) 55 Value Destroyed (412) 412 Prototype IDs (4) 80 Alien Tech Used (0) 0 Bonus (-140) -140 TOTAL SCORE: 3107 Bonus ------- Friendly Fire -140 Cogmind --------- Core Integrity 700/700 Matter 234/300 Energy 98/100 System Corruption 0% Temperature Cool (0) Movement Core (50) Location -7/Factory Parts ------- > --- POWER (2) -------- (None) > --- PROPULSION (4) --- (None) > --- UTILITY (5) ------ Improved Sensor Array Improved Signal Interpreter Hacking Suite > --- WEAPON (2) ------- (None) > --- INVENTORY (10) --- Light Nuclear Core Mining Laser Flail Peak State ------------ > --- POWER ------------ Light Nuclear Core > --- PROPULSION ------- VTOL Module VTOL Module VTOL Module > --- UTILITY ---------- Improved Sensor Array Improved Signal Interpreter Hacking Suite > --- WEAPON ----------- Rocket Launcher Flail > --- INVENTORY -------- Mining Laser [Rating: 20] Favorites ----------- Power Light Nuclear Core Engine Light Ion Engine Power Core Light Nuclear Core Propulsion VTOL Module Flight Unit VTOL Module Utility Improved Signal Interpreter Device Improved Sensor Array Processor Improved Signal Interpreter Hackware Hacking Suite Weapon Flail Launcher Rocket Launcher Impact Weapon Flail Build | -11 -10 -10 -10 -9 -8 -7 ------- Run | Scr Mat Min Exi Min Mat Fac Slots Evolved 6 | . . . . . 4 2 Power 1 | . . . . . 1 . Propulsion 2 | . . . . . 2 . Utility 3 | . . . . . 1 2 Weapon . | . . . . . . . Parts Attached 1 | . . . . 1 . . Power . | . . . . . . . Engine . | . . . . . . . Core . | . . . . . . . Reactor . | . . . . . . . Propulsion . | . . . . . . . Treads . | . . . . . . . Leg . | . . . . . . . Wheel . | . . . . . . . Hover . | . . . . . . . Flight . | . . . . . . . Utility . | . . . . . . . Device . | . . . . . . . Storage . | . . . . . . . Processor . | . . . . . . . Hackware . | . . . . . . . Protection . | . . . . . . . Artifact . | . . . . . . . Weapon 1 | . . . . 1 . . Energy Gun . | . . . . . . . Energy Cannon . | . . . . . . . Ballistic Gun . | . . . . . . . Ballistic Cannon . | . . . . . . . Launcher 1 | . . . . 1 . . Special Weapon . | . . . . . . . Impact Weapon . | . . . . . . . Slashing Weapon . | . . . . . . . Piercing Weapon . | . . . . . . . Special Melee Weapon . | . . . . . . . Unidentified Prototypes . | . . . . . . . Parts Lost 6 | . . . . . 5 1 Power 1 | . . . . . 1 . Propulsion 3 | . . . . . 2 1 Utility 1 | . . . . . 1 . Weapon 1 | . . . . . 1 . Highest Loss Streak 4 | . . . . . 4 1 Average Slot Usage (%) 56 | . 85 85 85 94 68 30 Engine 5 | . 14 14 14 14 4 . Core 3 | . . . . . 4 4 Flight 16 | . 28 28 28 28 21 7 Device 7 | . 14 14 14 14 8 2 Processor 9 | . 14 14 14 14 9 7 Hackware 4 | . . . . . 4 7 Launcher 2 | . . . . 9 8 . Impact Weapon 6 | . 14 14 14 14 8 . Naked Turns . | . . . . . . . Heaviest Build 12 | 6 6 6 6 10 12 5 Greatest Support 15 | 10 10 10 10 10 15 5 Greatest Overweight (x) 1 | . . . . . 1 . Average Overweight (x) . | . . . . . . . Largest Inventory Capacity 10 | 10 10 10 10 10 10 10 Average Capacity 10 | 10 10 10 10 10 10 10 Most Carried 3 | . . . . 2 2 3 Average Carried 1 | . . . . 1 1 2 Final Capacity 10 | 10 10 10 10 10 10 10 Final Carried 3 | . . . . 1 2 3 Class Distribution -------------------- 100% | Mutant Dominant Class ---------------- Mutant | -10/Materials Mutant | -10/Mines Mutant | -10/Exiles Mutant | -9/Mines Mutant | -8/Materials Mutant | -7/Factory Resources | -11 -10 -10 -10 -9 -8 -7 ----------- Run | Scr Mat Min Exi Min Mat Fac Matter Collected 169 | . . . . 20 149 . Remotely . | . . . . . . . Salvage Created 237 | . . . . 20 217 . Parts . | . . . . . . . Haulers Intercepted . | . . . . . . . Recyclers Shooed . | . . . . . . . Parts Field Recycled . | . . . . . . . Retrieved Matter . | . . . . . . . Parts Self-Destructed . | . . . . . . . Prevented . | . . . . . . . Kills | -11 -10 -10 -10 -9 -8 -7 ------- Run | Scr Mat Min Exi Min Mat Fac Combat Hostiles Destroyed 9 | . . . . 4 5 . AOE 8 | . . . . 4 4 . Classes Destroyed 5 | . . . . 1 4 . Worker 1 | . . . . . 1 . Swarmer 4 | . . . . 4 . . Grunt 3 | . . . . . 3 . Sentry 1 | . . . . . 1 . Hunter 1 | . . . . . 1 . Thug 1 | . . . . . 1 . Best Kill Streak 4 | . . . . 4 4 . Combat Bots Only 4 | . . . . 4 3 . Max Kills in Single Turn 4 | . . . . 4 3 . Gunslinging . | . . . . . . . Exploded 4 | . . . . 4 2 . Melee . | . . . . . . . Uniques/NPCs Destroyed . | . . . . . . . Combat | -11 -10 -10 -10 -9 -8 -7 -------- Run | Scr Mat Min Exi Min Mat Fac Damage Taken 413 | . . . . 61 320 32 Core 110 | . . . . 19 91 . Absorbed by Shields . | . . . . . . . Core Remaining (%) 91 | 100 . . . 92 83 . Volleys Fired 5 | . . . . 1 4 . Largest 1 | . . . . 1 1 . Hottest 33 | . . . . 33 33 . Shots Fired 5 | . . . . 1 4 . Gun . | . . . . . . . Cannon . | . . . . . . . Launcher 5 | . . . . 1 4 . Special . | . . . . . . . Kinetic . | . . . . . . . Thermal . | . . . . . . . Explosive 5 | . . . . 1 4 . Electromagnetic . | . . . . . . . Robot Hit Streak 2 | . . . . . 2 . Robot Miss Streak 1 | . . . . 1 1 . Penetration Max . | . . . . . . . Secondary Targets . | . . . . . . . Shots Hit Robots 13 | . . . . . 13 . Core Hits 15 | . . . . 5 10 . Critical Hits . | . . . . . . . Critical Kills . | . . . . . . . Critical Parts Destroyed . | . . . . . . . Melee Attacks 14 | . . . . . 14 . Impact 14 | . . . . . 14 . Slashing . | . . . . . . . Piercing . | . . . . . . . Sneak Attacks . | . . . . . . . Combat Hostiles . | . . . . . . . Follow-up Attacks . | . . . . . . . Damage Inflicted 732 | . . . . 161 571 . Guns . | . . . . . . . Cannons . | . . . . . . . Explosions 499 | . . . . 161 338 . Melee 233 | . . . . . 233 . Ramming . | . . . . . . . Kinetic . | . . . . . . . Thermal . | . . . . . . . Explosive 499 | . . . . 161 338 . Electromagnetic . | . . . . . . . Impact 233 | . . . . . 233 . Slashing . | . . . . . . . Piercing . | . . . . . . . Highest Corruption . | . . . . . . . Average Corruption . | . . . . . . . Corruption Purged . | . . . . . . . Overload Shots . | . . . . . . . Overflow Damage 17 | . . . . . 17 . Projectiles . | . . . . . . . Explosions . | . . . . . . . Melee 17 | . . . . . 17 . Knockbacks . | . . . . . . . Impact . | . . . . . . . Kinetic . | . . . . . . . Secondary . | . . . . . . . Self-Inflicted Damage . | . . . . . . . Shots . | . . . . . . . Rammed . | . . . . . . . Targets Rammed . | . . . . . . . Kicked . | . . . . . . . Crushed . | . . . . . . . Highest Temperature 6 | . . . . . 6 . Average Temperature 5 | . . . . . 5 . Received Heat Transfer 153 | . . . . . 153 . Siege Activations . | . . . . . . . Robots Corrupted . | . . . . . . . Combat Hostiles . | . . . . . . . Parts Fried . | . . . . . . . Impact Corruptions 1 | . . . . . 1 . Robots Melted . | . . . . . . . Combat Hostiles . | . . . . . . . Parts Melted . | . . . . . . . Heat Transferred . | . . . . . . . Parts Sabotaged . | . . . . . . . Parts Stolen . | . . . . . . . Parts Stripped . | . . . . . . . Power Chain Reactions . | . . . . . . . Missiles Intercepted . | . . . . . . . Alert | -11 -10 -10 -10 -9 -8 -7 ------- Run | Scr Mat Min Exi Min Mat Fac Peak Influence 271 | . 45 17 . 90 271 84 Average Influence 69 | . 36 17 . 54 139 38 Maximum Alert Level 1 | . . . . . 1 . Low Security (%) 89 | 100 100 100 . 100 66 100 Level 1 10 | . . . . . 33 . Level 2 . | . . . . . . . Level 3 . | . . . . . . . Level 4 . | . . . . . . . Level 5 . | . . . . . . . High Security . | . . . . . . . Max Security . | . . . . . . . Squads Dispatched 7 | . 1 . . . 2 4 Investigation 5 | . . . . . 2 3 Extermination 1 | . . . . . . 1 Reinforcement 1 | . 1 . . . . . Assault . | . . . . . . . Garrison . | . . . . . . . Intercept . | . . . . . . . Construction Impeded . | . . . . . . . Haulers Reinforced . | . . . . . . . Stealth | -11 -10 -10 -10 -9 -8 -7 --------- Run | Scr Mat Min Exi Min Mat Fac Distress Signals 1 | . 1 . . . . . Communications Jammed . | . . . . . . . Distress Signals . | . . . . . . . Times Spotted 20 | . 3 . . 4 12 1 Peak Tracking Total 5 | . 3 . . 4 5 3 Tactical Retreats 4 | . 1 . . 1 2 . Traps | -11 -10 -10 -10 -9 -8 -7 ------- Run | Scr Mat Min Exi Min Mat Fac Traps Triggered 2 | . . . . . . 2 Indirectly . | . . . . . . . Trap Hack Attempts . | . . . . . . . Triggered . | . . . . . . . Disarmed . | . . . . . . . Reprogrammed . | . . . . . . . Reused . | . . . . . . . Traps Extracted . | . . . . . . . Installed . | . . . . . . . Triggered . | . . . . . . . Machines | -11 -10 -10 -10 -9 -8 -7 ---------- Run | Scr Mat Min Exi Min Mat Fac Machines Disabled 1 | . . . . . 1 . Max in Single Turn 1 | . . . . . 1 . Machines Sabotaged 2 | . . . . . 1 1 Garrisons Compromised . | . . . . . . . Overloaded Fab Kills . | . . . . . . . Fab Network Shutdowns . | . . . . . . . Hacking | -11 -10 -10 -10 -9 -8 -7 --------- Run | Scr Mat Min Exi Min Mat Fac Machines Accessed 10 | . 1 . 4 . 2 3 Terminals 6 | . 1 . . . 2 3 Fabricators . | . . . . . . . Repair Stations . | . . . . . . . Recycling Units . | . . . . . . . Scanalyzers . | . . . . . . . Garrison Access . | . . . . . . . Total Hacks 66 | . 3 . 48 . 6 9 Successful 58 | . . . 48 . 5 5 Failed 8 | . 3 . . . 1 4 Catastrophic . | . . . . . . . Database Lockouts . | . . . . . . . Manual 19 | . 3 . 1 . 7 8 Terminals 18 | . 3 . . . 6 9 Fabricators . | . . . . . . . Repair Stations . | . . . . . . . Recycling Units . | . . . . . . . Scanalyzers . | . . . . . . . Garrison Access . | . . . . . . . Terminal Hacks 54 | . . . 48 . 4 2 Record 48 | . . . 48 . . . Part Schematic 1 | . . . . . 1 . Prototype ID Bank 1 | . . . . . . 1 Branch Access Points 1 | . . . . . 1 . Terminal Index 2 | . . . . . 1 1 Dispatch Records 1 | . . . . . 1 . Fabricator Hacks . | . . . . . . . Repair Station Hacks . | . . . . . . . Recycling Unit Hacks . | . . . . . . . Scanalyzer . | . . . . . . . Garrison Access Hacks . | . . . . . . . Unauthorized Hacks 8 | . . . . . 2 6 Terminals 4 | . . . . . 1 3 Sabotage 4 | . . . . . 1 3 Fabricators . | . . . . . . . Repair Stations . | . . . . . . . Recycling Units . | . . . . . . . Scanalyzers . | . . . . . . . Garrison Access . | . . . . . . . Data Cores Recovered . | . . . . . . . Used . | . . . . . . . Hacking Detections 5 | . 1 . . . 2 2 Full Trace Events 1 | . . . . . 1 . Feedback Events . | . . . . . . . Feedback Blocked . | . . . . . . . Robot Schematics Acquired . | . . . . . . . Robots Built . | . . . . . . . Matter . | . . . . . . . Time . | . . . . . . . Total Robot Build Rating . | . . . . . . . Part Schematics Acquired 1 | . . . . . 1 . Parts Built . | . . . . . . . Matter . | . . . . . . . Time . | . . . . . . . Total Part Build Rating . | . . . . . . . Parts Repaired . | . . . . . . . Time . | . . . . . . . Parts Recycled . | . . . . . . . Recycled Matter . | . . . . . . . Retrieved Matter . | . . . . . . . Retrieved Components . | . . . . . . . Parts Scanalyzed . | . . . . . . . Part Schematics Acquired . | . . . . . . . Parts Damaged . | . . . . . . . Bothacking | -11 -10 -10 -10 -9 -8 -7 ------------ Run | Scr Mat Min Exi Min Mat Fac Used RIF Installer . | . . . . . . . Robots Hacked . | . . . . . . . Non-combat . | . . . . . . . Combat . | . . . . . . . Robot Hacks Applied . | . . . . . . . Relay Couplers Released . | . . . . . . . Robots Rewired . | . . . . . . . Allies Hacked . | . . . . . . . Hacks Repelled . | . . . . . . . Allies | -11 -10 -10 -10 -9 -8 -7 -------- Run | Scr Mat Min Exi Min Mat Fac Total Allies 4 | . . 3 . 1 . . Largest Group 3 | . . 3 3 1 1 . Highest-Rated Group 40 | . . 40 40 31 31 . Highest-Rated Ally 31 | . . 16 16 31 31 . Total Orders . | . . . . . . . Ally Attacks 2 | . . . . . 2 . Total Damage 41 | . . . . . 41 . Kills . | . . . . . . . Allies Corrupted . | . . . . . . . Allies Melted . | . . . . . . . Intel | -11 -10 -10 -10 -9 -8 -7 ------- Run | Scr Mat Min Exi Min Mat Fac Robot Analysis Total . | . . . . . . . Derelict Logs Recovered . | . . . . . . . Drone Launches . | . . . . . . . Drone Recoveries . | . . . . . . . Exploration | -11 -10 -10 -10 -9 -8 -7 ------------- Run | Scr Mat Min Exi Min Mat Fac Turns Passed 2161 | 7 203 17 225 167 581 961 Spaces Moved 1889 | 18 327 15 608 376 237 308 Core . | . . . . . . . Treads . | . . . . . . . Legs . | . . . . . . . Wheels . | . . . . . . . Hover . | . . . . . . . Flight 1889 | 18 327 15 608 376 237 308 Fastest Speed 34 | 37 37 37 37 37 34 40 Average Speed 37 | 37 37 37 37 37 40 40 Slowest Speed 120 | 37 37 37 37 37 120 40 Overloaded Moves . | . . . . . . . Propulsion Burnouts . | . . . . . . . Robots Hopped 4 | . 1 . . 1 . 2 Cave-ins Triggered . | . . . . . . . Exploration Rate (%) 34 | 3 52 4 91 63 22 8 Regions Visited 6 Branch Regions 3 Pre-discovered Areas 1 | . . . 1 . . . Known Exits Taken 6 | 1 1 1 1 1 1 . Unknown Exits Taken . | . . . . . . . Scrap Searched . | . . . . . . . Spaces Dug . | . . . . . . . Terrain Destroyed 33 | . . . . 6 27 . Melee . | . . . . . . . Projectile . | . . . . . . . AOE 33 | . . . . 6 27 . Actions | -11 -10 -10 -10 -9 -8 -7 --------- Run | Scr Mat Min Exi Min Mat Fac Total 3298 | 17 407 25 607 401 697 1144 Wait 1359 | . 82 11 . 23 442 801 Move 1876 | 17 324 14 607 373 236 305 Hop 3 | . 1 . . 1 . 1 Pick Up 2 | . . . . 2 . . Fast Attach . | . . . . . . . Attach 1 | . . . . 1 . . Detach 2 | . . . . . 1 1 Swap . | . . . . . . . Drop . | . . . . . . . Fire 5 | . . . . 1 4 . Melee 14 | . . . . . 14 . Ram . | . . . . . . . Kick . | . . . . . . . Crush . | . . . . . . . Escape Stasis 36 | . . . . . . 36 Rewire . | . . . . . . . Trap . | . . . . . . . Miscellaneous . | . . . . . . . Route ------- -11/Scrapyard -10/Materials (discovered 3 exits: *Mat x2 / *Min) -10/Mines -10/Exiles (discovered 2 exits: *Min x2) -9/Mines (discovered 2 exits: *Mat x2) -8/Materials -7/Factory History --------- Turn | Location | Event 3 | -11/Scrapyard | Discovered new exit (range 13) 7 | -11/Scrapyard | Identified exit to Materials 8 | -11/Scrapyard | Entered Materials 162 | -10/Materials | Discovered new exit (range 6) 164 | -10/Materials | Identified exit to Materials 182 | -10/Materials | Discovered exit to Materials (range 3) 207 | -10/Materials | Discovered new exit (range 11) 211 | -10/Materials | Identified exit to Mines 211 | -10/Materials | Entered Mines 212 | -10/Mines | Assembled infested the area 212 | -10/Mines | Assisted by bots powering up and referring to "LRC-V3" 214 | -10/Mines | Deemed a non-threat by the Exiles lab entrance 214 | -10/Mines | Discovered new exit (range 5) 216 | -10/Mines | Identified exit to Exiles 228 | -10/Mines | Entered Exiles 228 | -10/Exiles | Accompanied by 3 allies 236 | -10/Exiles | Discovered new exit (range 15) 241 | -10/Exiles | Identified exit to Mines 249 | -10/Exiles | Met 8R-AWN 255 | -10/Exiles | Met EX-HEX 274 | -10/Exiles | Met EX-DEC 282 | -10/Exiles | Visited The Gauntlet 305 | -10/Exiles | Build established: Mutant 331 | -10/Exiles | Met EX-BIN 382 | -10/Exiles | Learned location of Zion (-6) 398 | -10/Exiles | Discovered exit to Mines (range 14) 453 | -10/Exiles | Entered Mines 456 | -9/Mines | Received a Mining Laser from a helpful Derelict 460 | -9/Mines | Met a Derelict bent on vengeance 477 | -9/Mines | Received a Rocket Launcher from a helpful Derelict 492 | -9/Mines | Discovered new exit (range 5) 493 | -9/Mines | Identified exit to Materials 566 | -9/Mines | Discovered exit to Materials (range 12) 620 | -9/Mines | Entered Materials 620 | -8/Materials | Accompanied by 1 ally 620 | -8/Materials | Evolved 4 slots: Power x1, Propulsion x2, Utility x1 1191 | -8/Materials | Lost 4 parts (2n1u1w) 1195 | -8/Materials | Discovered new exit (range 15) 1201 | -8/Materials | Identified exit to Factory 1201 | -8/Materials | Entered Factory 1201 | -7/Factory | Evolved 2 slots: Utility x2 2162 | -7/Factory | Self-destructed Last Messages --------------- 02137_ Field strength at 80. 02138_ Field strength at 75. 02139_ Field strength at 70. 02140_ Field strength at 65. 02141_ Field strength at 60. 02142_ Field strength at 55. 02143_ Field strength at 50. 02144_ Field strength at 45. 02145_ Field strength at 40. 02146_ Field strength at 35. 02147_ Field strength at 30. 02148_ Field strength at 25. 02149_ Field strength at 20. 02150_ Field strength at 15. 02151_ Field strength at 10. 02152_ Field strength at 5. 02153_ Stasis field depleted. 02161_ Penetrated by Slug. 02161_ VTOL Module destroyed. 02161_ U-05 Engineer destroyed. Map ----- +----------------------------------------------------+ | # """""" # """""" #????????? | | #####+## """""" # """""" #????????? | | # """""" # """""" #????????? | | # # """""" #????????? | | """" + # #????????? | | """" # + """""" #????????? | | """" # # """""" #????????? | | """" # # """""" #????????? | | # ###+##### # """""" #????????? | | """" # #???????# # #????????? | | """" # #???????# h# #????????? | | """" # #???????# ##############????????? | | """" + #???????# #?????????????????????? | | # #???????# #?????????????????????? | | ######## #???????# #?????????????????????? | | """ ??# #???????# #?????????????????????? | | """ ??# #???????# k %#?????????????????????? | | """ # #???????# #?????????????????????? | | + #???????# #?????????????????????? | | # #???????# #?????????????????????? | | # #???????# #?????????????????????? | | + #???????# #?????????????????????? | | ############ #???????# #?????????????????????? | | ????########+######### u #?????????????????????? | | ????# # #?????????????????????? | | ????# """" """" """" + @ #?????????????????????? | | ????# """" """" """" # #?????????????????????? | | ????# """" """" """" # #?????????????????????? | | ????# """" """" """" # #?????????????????????? | | ????# """" """" """" # t#?????????????????????? | | ????# """" """" """" # ################??????? | | ????# # # #??????? | | ????# # + """"" #??????? | | ????################## # """"" """ #??????? | | ????????????########## # """ T" #??????? | | ????????????# # # """ #??????? | | ????????????# # # #??????? | | ????????????# # ################??????? | | ????????????# # #?????????????????????? | | ????????????# + #?????????????????????? | | ????????????# # #?????????????????????? | | ????????????# # #?????????????????????? | | ????????????# # #?????????????????????? | | ????????????# # #?????????????????????? | | ????????????########## #?????????????????????? | | ?????????????????????# #?????????????????????? | | ?????????????????????# +?????????????????????? | | ?????????????????????# #?????????????????????? | | ?????????????????????# #?????????????????????? | | ?????????????????????# #?????????????????????? | +----------------------------------------------------+ Best States ------------- Heat Dissipation 34 Energy Generation 14 Energy Capacity 160 Matter Stores 229 Matter Capacity 300 Sight Range 16 Robot Scan Range 13 Terrain Scan Density 10 Evasion (%) 62 Offensive Hacking 10 Item Schematics ----------------- Flight Unit | -8/Materials | Hacked Robot Schematics ------------------ None Fabricated ------------ Nothing Alien Tech Used ----------------- None Achievements -------------- None Challenges ------------ None Cogshop Purchases (10) ------------------------ Lgt. Ion Engine (599) VTOL Module (1049) VTOL Module (1049) Imp. Sensor Array (699) Imp. Signal Interpreter (699) Flail (629) Lgt. Nuclear Core (775) VTOL Module (1297) Hacking Suite (924) Imp. Sensor Array (764) Game ------ Seed TractorSwordPlating Manual? 0 Play Time 00:30:06 Cumulative 44.0 hours Start 2020.01.20 @ 20:45:12 End 2020.01.20 @ 22:06:30 Sessions 1 Manual Loads 0 Difficulty Rogue Special Mode AFD2019/Pay2Buy Game No. 70 Rogue 70 Adventurer 0 Explorer 0 Win Type - Total 1 Types 1/0/0/0/0/0/0 Lore% 32 Gallery% 35 Achievement% 30 Wizard Run 0 Options --------- ASCII 0 Keyboard 0 Movement Mouse Keybinds 0 Fullscreen 1 Font 18/SmallcapsGlow Map View 76x50 Tactical HUD 1 Map Filters NONE Filters NONE Steam 1 RUN: 21ea1658-abdf-4b13-88ba-e5fbee198855